fUSD/lending_fUSD_20240712
["ID","MTS","AMOUNT","RATE_DAILY","PERIOD"]
[331786953,1720763455636,-567.86,0.00013808,2]
[331786954,1720763455646,-1047.84,0.00013808,2]
[331786955,1720763455656,-1020.43,0.00013808,2]
[331786956,1720763455665,-500.0,0.00013808,2]
[331786957,1720763455675,-530.86,0.00013808,2]
[331786958,1720763455684,-556.18,0.00013808,2]
[331786959,1720763455695,-862.65,0.00013808,2]
[331786960,1720763455704,-1199.14,0.00013808,2]
[331786961,1720763455714,-500.0,0.00013808,2]
[331786962,1720763455724,-1029.61,0.00013808,2]
[331786963,1720763455734,-500.0,0.00013808,2]
[331786964,1720763455746,-500.0,0.00013808,2]
[331786965,1720763455755,-500.0,0.00013808,2]
[331786966,1720763455765,-1682.98,0.00013808,2]
[331786967,1720763455775,-431.53,0.00013808,2]
[331786968,1720763455785,-837.55,0.00013808,2]
[331786969,1720763455794,-887.36,0.00013808,2]
[331786970,1720763455804,-500.0,0.00013808,2]
[331786971,1720763455815,-614.63,0.00013808,2]
[331786972,1720763455825,-995.0,0.00013808,2]
[331786973,1720763455836,-500.0,0.00013808,2]
[331786974,1720763455846,-783.49,0.00013808,2]
[331786975,1720763455855,-751.09,0.00013808,2]
[331786976,1720763455865,-939.37,0.00013808,2]
[331786977,1720763455875,-557.65,0.00013808,2]
[331786978,1720763455885,-647.16,0.00013808,2]
[331786979,1720763455896,-880.13,0.00013808,2]
[331786980,1720763455906,-579.77,0.00013808,2]
[331786981,1720763455916,-500.0,0.00013808,2]
[331786982,1720763455927,-500.0,0.00013808,2]
[331786983,1720763455936,-500.0,0.00013808,2]
[331786984,1720763455946,-500.0,0.00013808,2]
[331786985,1720763455959,-500.0,0.00013808,2]
[331786986,1720763455969,-500.0,0.00013808,2]
[331786987,1720763455978,-679.84,0.00013808,2]
[331786988,1720763455988,-500.0,0.00013808,2]
[331786989,1720763455998,-691.36,0.00013808,2]
[331786990,1720763456008,-500.0,0.00013808,2]
[331786991,1720763456017,-765.01,0.00013808,2]
[331786992,1720763456027,-583.18,0.00013808,2]
[331786993,1720763456037,-500.0,0.00013808,2]
[331786994,1720763456047,-1386.15,0.00013808,2]
[331786995,1720763456057,-660.29,0.00013808,2]
[331786996,1720763456068,-500.0,0.00013808,2]
[331786997,1720763456080,-6486.68,0.00013808,2]
[331786998,1720763456090,-500.0,0.00013808,2]
[331786999,1720763456100,-840.31,0.00013808,2]
[331787000,1720763456110,-1692.17,0.00013808,2]
[331787001,1720763456121,-500.0,0.00013808,2]
[331787002,1720763456132,-537.81,0.00013808,2]
[331787003,1720763456142,-761.91,0.00013808,2]
[331787004,1720763456153,-636.31253802,0.00013808,2]
[331787005,1720763456163,-500.0,0.00013808,2]
[331787006,1720763456175,-500.0,0.00013808,2]
[331787007,1720763456186,-1387.45,0.00013808,2]
[331787008,1720763456197,-500.0,0.00013808,2]
[331787009,1720763456208,-500.0,0.00013808,2]
[331787010,1720763456219,-613.51,0.00013808,2]
[331787011,1720763456230,-500.0,0.00013808,2]
[331787012,1720763456240,-834.91,0.00013808,2]
[331787013,1720763456253,-518.2,0.00013808,2]
[331787014,1720763456264,-1549.83,0.00013808,2]
[331787015,1720763456274,-500.0,0.00013808,2]
[331787016,1720763456284,-284.64,0.00013808,2]
[331787017,1720763456294,-1157.75,0.00013808,2]
[331787018,1720763456303,-558.4,0.00013808,2]
[331787019,1720763456313,-500.0,0.00013808,2]
[331787020,1720763456322,-500.0,0.00013808,2]
[331787021,1720763456333,-867.7,0.00013808,2]
[331787022,1720763456343,-500.0,0.00013808,2]
[331787023,1720763456353,-500.0,0.00013808,2]
[331787024,1720763456362,-500.0,0.00013808,2]
[331787025,1720763456372,-2448.03,0.00013808,2]
[331787026,1720763456382,-158.7667717,0.00013808,2]
[331787027,1720763456392,-500.0,0.00013808,2]
[331787028,1720763456401,-7266.0,0.00013808,2]
[331787029,1720763456411,-500.0,0.00013808,2]
[331787030,1720763456421,-995.5,0.00013808,2]
[331787031,1720763456431,-2532.39,0.00013808,2]
[331787032,1720763456441,-500.0,0.00013808,2]
[331787033,1720763456452,-500.0,0.00013808,2]
[331787034,1720763456462,-991.17,0.00013808,2]
[331787035,1720763456473,-500.0,0.00013808,2]
[331787036,1720763456484,-606.71,0.00013808,2]
[331787037,1720763456494,-500.0,0.00013808,2]
[331787038,1720763456504,-500.0,0.00013808,2]
[331787039,1720763456514,-3130.05,0.00013808,2]
[331787040,1720763456523,-500.0,0.00013808,2]
[331787041,1720763456533,-640.74,0.00013808,2]
[331787042,1720763456545,-500.0,0.00013808,2]
[331787043,1720763456554,-500.0,0.00013808,2]
[331787044,1720763456564,-500.0,0.00013808,2]
[331787045,1720763456574,-500.0,0.00013808,2]
[331787046,1720763456586,-1788.3,0.00013808,2]
[331787047,1720763456597,-500.0,0.00013808,2]
[331787048,1720763456607,-500.0,0.00013808,2]
[331787049,1720763456618,-500.0,0.00013808,2]
[331787050,1720763456628,-2059.6,0.00013808,2]
[331787051,1720763456638,-500.0,0.00013808,2]
[331787052,1720763456648,-500.0,0.00013808,2]
[331787053,1720763456659,-748.99,0.00013808,2]
[331787054,1720763456669,-500.0,0.00013808,2]
[331787055,1720763456679,-1087.57,0.00013808,2]
[331787056,1720763456689,-500.0,0.00013808,2]
[331787057,1720763456699,-1000.0,0.00013808,2]
[331787058,1720763456710,-856.78,0.00013808,2]
[331787059,1720763456720,-500.0,0.00013808,2]
[331787060,1720763456730,-504.17,0.00013808,2]
[331787061,1720763456743,-500.0,0.00013808,2]
[331787062,1720763456753,-500.0,0.00013808,2]
[331787063,1720763456763,-659.94,0.00013808,2]
[331787064,1720763456773,-500.0,0.00013808,2]
[331787065,1720763456785,-572.08,0.00013808,2]
[331787066,1720763456795,-967.14,0.00013808,2]
[331787067,1720763456804,-500.0,0.00013808,2]
[331787068,1720763456815,-695.39,0.00013808,2]
[331787069,1720763456825,-545.8,0.00013808,2]
[331787070,1720763456837,-500.0,0.00013808,2]
[331787071,1720763456847,-2842.33,0.00013808,2]
[331787072,1720763456857,-500.0,0.00013808,2]
[331787073,1720763456867,-777.83,0.00013808,2]
[331787074,1720763456877,-500.0,0.00013808,2]
[331787075,1720763456888,-832.97,0.00013808,2]
[331787076,1720763456898,-500.0,0.00013808,2]
[331787077,1720763456909,-500.0,0.00013808,2]
[331787078,1720763456919,-667.44,0.00013808,2]
[331787079,1720763456929,-500.0,0.00013808,2]
[331787080,1720763456939,-500.0,0.00013808,2]
[331787081,1720763456949,-500.0,0.00013808,2]
[331787082,1720763456959,-1194.9,0.00013808,2]
[331787083,1720763456969,-762.38,0.00013808,2]
[331787084,1720763456979,-500.0,0.00013808,2]
[331787085,1720763456988,-500.0,0.00013808,2]
[331787086,1720763456998,-1168.92,0.00013808,2]
[331787087,1720763457008,-500.0,0.00013808,2]
[331787088,1720763457018,-500.0,0.00013808,2]
[331787089,1720763457028,-500.0,0.00013808,2]
[331787090,1720763457038,-500.0,0.00013808,2]
[331787091,1720763457048,-570.01,0.00013808,2]
[331787092,1720763457058,-500.0,0.00013808,2]
[331787093,1720763457068,-500.0,0.00013808,2]
[331787094,1720763457079,-500.0,0.00013808,2]
[331787095,1720763457092,-707.76,0.00013808,2]
[331787096,1720763457102,-500.0,0.00013808,2]
[331787097,1720763457113,-518.23,0.00013808,2]
[331787098,1720763457123,-3373.02,0.00013808,2]
[331787099,1720763457133,-935.45,0.00013808,2]
[331787100,1720763457143,-500.0,0.00013808,2]
[331787101,1720763457154,-514.17,0.00013808,2]
[331787102,1720763457164,-546.12,0.00013808,2]
[331787103,1720763457174,-500.0,0.00013808,2]
[331787104,1720763457184,-500.0,0.00013808,2]
[331787105,1720763457194,-1114.72,0.00013808,2]
[331787106,1720763457204,-500.0,0.00013808,2]
[331787107,1720763457214,-500.0,0.00013808,2]
[331787108,1720763457223,-500.0,0.00013808,2]
[331787109,1720763457233,-772.37,0.00013808,2]
[331787110,1720763457243,-558.88,0.00013808,2]
[331787111,1720763457253,-396.83,0.00013808,2]
[331787112,1720763457262,-500.0,0.00013808,2]
[331787113,1720763457272,-500.0,0.00013808,2]
[331787114,1720763457282,-500.0,0.00013833,2]
[331787115,1720763457292,-500.0,0.00013834,2]
[331787116,1720763457302,-500.0,0.00013834,2]
[331787117,1720763457312,-500.0,0.00013834,2]
[331787118,1720763457321,-500.0,0.00013834,2]
[331787119,1720763457333,-500.0,0.00013834,2]
[331787120,1720763457343,-893.46,0.00013834,2]
[331787121,1720763457353,-500.0,0.00013834,2]
[331787122,1720763457363,-500.0,0.00013834,2]
[331787123,1720763457375,-500.0,0.00013834,2]
[331787124,1720763457384,-500.0,0.00013834,2]
[331787125,1720763457394,-532.47,0.00013834,2]
[331787126,1720763457404,-500.0,0.00013834,2]
[331787127,1720763457414,-500.0,0.00013834,2]
[331787128,1720763457424,-708.52,0.00013834,2]
[331787129,1720763457434,-500.0,0.00013834,2]
[331787130,1720763457447,-500.0,0.00013834,2]
[331787131,1720763457456,-500.0,0.00013834,2]
[331787132,1720763457466,-500.0,0.00013834,2]
[331787133,1720763457476,-500.0,0.00013834,2]
[331787134,1720763457486,-500.0,0.00013834,2]
[331787135,1720763457496,-594.85599685,0.00013834,2]
[331787136,1720763457505,-500.0,0.00013834,2]
[331787137,1720763457515,-500.0,0.00013834,2]
[331787138,1720763457525,-500.0,0.00013834,2]
[331787139,1720763457535,-813.96,0.00013834,2]
[331787140,1720763457544,-500.0,0.00013834,2]
[331787141,1720763457554,-567.17,0.00013834,2]
[331787142,1720763457564,-500.0,0.00013834,2]
[331787143,1720763457574,-735.28,0.00013834,2]
[331787144,1720763457585,-500.0,0.00013834,2]
[331787145,1720763457595,-500.0,0.00013834,2]
[331787146,1720763457606,-530.2,0.00013834,2]
[331787147,1720763457617,-877.32,0.00013834,2]
[331787148,1720763457627,-500.0,0.00013834,2]
[331787149,1720763457637,-500.0,0.00013834,2]
[331787150,1720763457872,-500.0,0.00013834,2]
[331787151,1720763457891,-500.0,0.00013834,2]
[331787152,1720763457901,-922.47,0.00013834,2]
[331787153,1720763457911,-500.0,0.00013834,2]
[331787154,1720763457921,-500.0,0.00013834,2]
[331787155,1720763457930,-500.0,0.00013834,2]
[331787156,1720763457940,-500.0,0.00013834,2]
[331787157,1720763457950,-537.52,0.00013834,2]
[331787158,1720763457960,-521.23,0.00013834,2]
[331787159,1720763457969,-500.0,0.00013834,2]
[331787160,1720763457979,-776.87,0.00013834,2]
[331787161,1720763457989,-584.93,0.00013834,2]
[331787162,1720763457999,-500.0,0.00013834,2]
[331787163,1720763458009,-500.0,0.00013834,2]
[331787164,1720763458018,-779.69,0.00013834,2]
[331787165,1720763458028,-500.0,0.00013834,2]
[331787166,1720763458037,-500.0,0.00013834,2]
[331787167,1720763458047,-500.0,0.00013834,2]
[331787168,1720763458057,-789.41,0.00013834,2]
[331787169,1720763458067,-500.0,0.00013834,2]
[331787170,1720763458076,-692.5,0.00013834,2]
[331787171,1720763458088,-500.0,0.00013834,2]
[331787172,1720763458097,-508.59,0.00013834,2]
[331787173,1720763458108,-500.0,0.00013834,2]
[331787174,1720763458118,-500.0,0.00013834,2]
[331787175,1720763458127,-735.38,0.00013834,2]
[331787176,1720763458137,-500.0,0.00013834,2]
[331787177,1720763458147,-500.0,0.00013834,2]
[331787178,1720763458157,-500.0,0.00013834,2]
[331787179,1720763458166,-500.0,0.00013834,2]
[331787180,1720763458176,-921.28,0.00013834,2]
[331787181,1720763458186,-500.0,0.00013834,2]
[331787182,1720763458196,-600.72,0.00013834,2]
[331787183,1720763458206,-500.0,0.00013834,2]
[331787184,1720763458215,-214.5,0.00013834,2]
[331787185,1720763458225,-940.63,0.00013834,2]
[331787186,1720763458236,-500.0,0.00013834,2]
[331787187,1720763458245,-555.08,0.00013834,2]
[331787188,1720763458255,-500.0,0.00013834,2]
[331787189,1720763458265,-633.58,0.00013834,2]
[331787190,1720763458275,-500.0,0.00013834,2]
[331787191,1720763458285,-1431.67,0.00013834,2]
[331787192,1720763458294,-1007.43,0.00013834,2]
[331787193,1720763458304,-500.0,0.00013834,2]
[331787194,1720763458314,-1182.33,0.00013834,2]
[331787195,1720763458324,-500.0,0.00013834,2]
[331787196,1720763458335,-1443.9,0.00013834,2]
[331787197,1720763458345,-298.11,0.00013834,2]
[331787198,1720763458354,-500.0,0.00013834,2]
[331787199,1720763458364,-500.0,0.00013834,2]
[331787200,1720763458375,-500.0,0.00013834,2]
[331787201,1720763458385,-500.0,0.00013834,2]
[331787202,1720763458395,-518.01,0.00013834,2]
[331787203,1720763458405,-778.34,0.00013834,2]
[331787204,1720763458415,-500.0,0.00013834,2]
[331787205,1720763458425,-529.45,0.00013834,2]
[331787206,1720763458435,-1076.33,0.00013834,2]
[331787207,1720763458444,-842.45,0.00013834,2]
[331787208,1720763458454,-500.0,0.00013834,2]
[331787209,1720763458464,-500.0,0.00013834,2]
[331787210,1720763458474,-1834.93,0.00013834,2]
[331787211,1720763458484,-500.0,0.00013834,2]
[331787212,1720763458496,-500.0,0.00013834,2]
[331787213,1720763458505,-500.0,0.00013834,2]
[331787214,1720763458515,-500.0,0.00013834,2]
[331787215,1720763458525,-1013.01,0.00013834,2]
[331787216,1720763458535,-500.0,0.00013834,2]
[331787217,1720763458545,-412.76863344,0.00013834,2]
[331787218,1720763458554,-500.0,0.00013834,2]
[331787219,1720763458564,-643.74,0.00013834,2]
[331787220,1720763458573,-500.0,0.00013834,2]
[331787221,1720763458583,-500.0,0.00013834,2]
[331787222,1720763458592,-500.0,0.00013834,2]
[331787223,1720763458602,-523.16,0.00013834,2]
[331787224,1720763458611,-950.02,0.00013834,2]
[331787225,1720763458621,-500.0,0.00013834,2]
[331787226,1720763458631,-575.10371709,0.00013834,2]
[331787227,1720763458641,-500.0,0.00013834,2]
[331787228,1720763458652,-831.14,0.00013834,2]
[331787229,1720763458662,-500.0,0.00013834,2]
[331787230,1720763458672,-957.46,0.00013834,2]
[331787231,1720763458681,-500.0,0.00013834,2]
[331787232,1720763458691,-500.0,0.00013834,2]
[331787233,1720763458701,-500.0,0.00013834,2]
[331787234,1720763458710,-500.0,0.00013834,2]
[331787235,1720763458719,-500.0,0.00013834,2]
[331787236,1720763458729,-500.0,0.00013834,2]
[331787237,1720763458742,-970.38,0.00013834,2]
[331787238,1720763458753,-1086.76,0.00013834,2]
[331787239,1720763458762,-500.0,0.00013834,2]
[331787240,1720763458772,-715.02,0.00013834,2]
[331787241,1720763458783,-500.0,0.00013834,2]
[331787242,1720763458792,-503.48,0.00013834,2]
[331787243,1720763458802,-1299.97,0.00013834,2]
[331787244,1720763458811,-1091.3,0.00013834,2]
[331787245,1720763458823,-1111.99,0.00013834,2]
[331787246,1720763458834,-500.0,0.00013834,2]
[331787247,1720763458844,-500.0,0.00013834,2]
[331787248,1720763458854,-500.0,0.00013834,2]
[331787249,1720763458864,-574.47,0.00013834,2]
[331787250,1720763458874,-500.0,0.00013834,2]
[331787251,1720763458883,-915.43,0.00013834,2]
[331787252,1720763458893,-500.0,0.00013834,2]
[331787253,1720763458902,-500.0,0.00013834,2]
[331787254,1720763458912,-500.0,0.00013834,2]
[331787255,1720763458922,-479.15273481,0.00013834,2]
[331787256,1720763458932,-500.0,0.00013834,2]
[331787257,1720763458942,-500.0,0.00013834,2]
[331787258,1720763458952,-500.0,0.00013834,2]
[331787259,1720763458963,-500.0,0.00013834,2]
[331787260,1720763458973,-572.49654419,0.00013834,2]
[331787261,1720763458982,-500.0,0.00013834,2]
[331787262,1720763458992,-500.0,0.00013834,2]
[331787263,1720763459002,-500.0,0.00013834,2]
[331787264,1720763459011,-500.0,0.00013834,2]
[331787265,1720763459021,-500.0,0.00013834,2]
[331787266,1720763459031,-732.88,0.00013834,2]
[331787267,1720763459042,-500.0,0.00013834,2]
[331787268,1720763459060,-1232.95,0.00013834,2]
[331787269,1720763459080,-500.0,0.00013834,2]
[331787270,1720763459090,-500.0,0.00013834,2]
[331787271,1720763459100,-500.0,0.00013834,2]
[331787272,1720763459109,-627.66,0.00013834,2]
[331787273,1720763459119,-500.0,0.00013834,2]
[331787274,1720763459129,-533.57,0.00013834,2]
[331787275,1720763459139,-500.0,0.00013834,2]
[331787276,1720763459148,-500.0,0.00013834,2]
[331787277,1720763459158,-500.0,0.00013834,2]
[331787278,1720763459167,-887.72,0.00013834,2]
[331787279,1720763459177,-500.0,0.00013834,2]
[331787280,1720763459186,-500.0,0.00013834,2]
[331787281,1720763459196,-500.0,0.00013834,2]
[331787282,1720763459205,-500.0,0.00013834,2]
[331787283,1720763459215,-500.0,0.00013834,2]
[331787284,1720763459225,-924.21,0.00013834,2]
[331787285,1720763459235,-526.67,0.00013834,2]
[331787286,1720763459245,-500.0,0.00013834,2]
[331787287,1720763459254,-500.0,0.00013834,2]
[331787288,1720763459264,-500.0,0.00013834,2]
[331787289,1720763459273,-500.0,0.00013834,2]
[331787290,1720763459283,-834.3,0.00013834,2]
[331787291,1720763459292,-500.0,0.00013834,2]
[331787292,1720763459301,-500.0,0.00013834,2]
[331787293,1720763459311,-500.0,0.00013834,2]
[331787294,1720763459320,-1358.75,0.00013834,2]
[331787295,1720763459330,-500.0,0.00013834,2]
[331787296,1720763459341,-500.0,0.00013834,2]
[331787297,1720763459351,-500.0,0.00013834,2]
[331787298,1720763459360,-500.0,0.00013834,2]
[331787299,1720763459370,-576.69,0.00013834,2]
[331787300,1720763459379,-500.0,0.00013834,2]
[331787301,1720763459389,-500.0,0.00013834,2]
[331787302,1720763459399,-500.0,0.00013834,2]
[331787303,1720763459408,-500.0,0.00013834,2]
[331787304,1720763459418,-557.65,0.00013834,2]
[331787305,1720763459427,-500.0,0.00013834,2]
[331787306,1720763459437,-500.0,0.00013834,2]
[331787307,1720763459445,-500.0,0.00013834,2]
[331787308,1720763459455,-500.0,0.00013834,2]
[331787309,1720763459464,-1075.38,0.00013834,2]
[331787310,1720763459474,-500.0,0.00013834,2]
[331787311,1720763459483,-513.85,0.00013834,2]
[331787312,1720763459492,-677.43,0.00013834,2]
[331787313,1720763459501,-500.0,0.00013834,2]
[331787314,1720763459510,-922.36,0.00013834,2]
[331787315,1720763459519,-500.0,0.00013834,2]
[331787316,1720763459528,-500.0,0.00013834,2]
[331787317,1720763459538,-500.0,0.00013834,2]
[331787318,1720763459548,-500.0,0.00013834,2]
[331787319,1720763459557,-1067.35,0.00013834,2]
[331787320,1720763459566,-500.0,0.00013834,2]
[331787321,1720763459576,-500.0,0.00013834,2]
[331787322,1720763459585,-500.0,0.00013834,2]
[331787323,1720763459594,-500.0,0.00013834,2]
[331787324,1720763459603,-500.0,0.00013834,2]
[331787325,1720763459613,-888.2,0.00013834,2]
[331787326,1720763459622,-1018.08,0.00013834,2]
[331787327,1720763459631,-500.0,0.00013834,2]
[331787328,1720763459640,-500.0,0.00013834,2]
[331787329,1720763459650,-500.0,0.00013834,2]
[331787330,1720763459659,-500.0,0.00013834,2]
[331787331,1720763459669,-500.0,0.00013834,2]
[331787332,1720763459678,-500.0,0.00013834,2]
[331787333,1720763459688,-500.0,0.00013834,2]
[331787334,1720763459697,-621.5,0.00013834,2]
[331787335,1720763459707,-527.45,0.00013834,2]
[331787336,1720763459716,-775.19,0.00013834,2]
[331787337,1720763459726,-587.6,0.00013834,2]
[331787338,1720763459736,-606.2,0.00013834,2]
[331787339,1720763459749,-500.0,0.00013834,2]
[331787340,1720763459759,-687.54,0.00013834,2]
[331787341,1720763459768,-500.0,0.00013834,2]
[331787342,1720763459778,-531.24,0.00013834,2]
[331787343,1720763459788,-500.0,0.00013834,2]
[331787344,1720763459797,-529.67,0.00013834,2]
[331787345,1720763459806,-588.19,0.00013834,2]
[331787346,1720763459817,-500.0,0.00013834,2]
[331787347,1720763459826,-500.0,0.00013834,2]
[331787348,1720763459837,-783.48,0.00013834,2]
[331787349,1720763459847,-500.0,0.00013834,2]
[331787350,1720763459856,-500.0,0.00013834,2]
[331787351,1720763459865,-1127.76,0.00013834,2]
[331787352,1720763459875,-300.44,0.00013834,2]
[331787353,1720763459885,-831.64,0.00013834,2]
[331787354,1720763459894,-500.0,0.00013834,2]
[331787355,1720763459903,-500.0,0.00013834,2]
[331787356,1720763459912,-624.49,0.00013834,2]
[331787357,1720763459922,-891.7,0.00013834,2]
[331787358,1720763459931,-337.44,0.00013834,2]
[331787359,1720763459941,-150.6,0.00013834,2]
[331787360,1720763459950,-500.0,0.00013834,2]
[331787361,1720763459959,-658.22,0.00013834,2]
[331787362,1720763459969,-500.0,0.00013834,2]
[331787363,1720763459978,-500.0,0.00013834,2]
[331787364,1720763459988,-938.15,0.00013834,2]
[331787365,1720763459997,-500.0,0.00013834,2]
[331787366,1720763460006,-559.3,0.00013834,2]
[331787367,1720763460015,-500.0,0.00013834,2]
[331787368,1720763460025,-316.4,0.00013834,2]
[331787369,1720763460034,-1238.9,0.00013834,2]
[331787370,1720763460043,-500.0,0.00013834,2]
[331787371,1720763460052,-500.0,0.00013834,2]
[331787372,1720763460062,-500.0,0.00013834,2]
[331787373,1720763460071,-500.0,0.00013834,2]
[331787374,1720763460081,-1054.17,0.00013834,2]
[331787375,1720763460092,-500.0,0.00013834,2]
[331787376,1720763460102,-500.0,0.00013834,2]
[331787377,1720763460111,-1094.92,0.00013834,2]
[331787378,1720763460120,-500.0,0.00013834,2]
[331787379,1720763460130,-1331.75,0.00013834,2]
[331787380,1720763460139,-715.5,0.00013834,2]
[331787381,1720763460149,-748.3,0.00013834,2]
[331787382,1720763460158,-500.0,0.00013834,2]
[331787383,1720763460167,-500.0,0.00013834,2]
[331787384,1720763460178,-500.0,0.00013834,2]
[331787385,1720763460188,-330.54,0.00013834,2]
[331787386,1720763460198,-500.0,0.00013834,2]
[331787387,1720763460208,-500.0,0.00013834,2]
[331787388,1720763460217,-1323.41,0.00013834,2]
[331787389,1720763460227,-334.85,0.00013834,2]
[331787390,1720763460238,-564.09,0.00013834,2]
[331787391,1720763460247,-500.0,0.00013834,2]
[331787392,1720763460257,-366.82,0.00013834,2]
[331787393,1720763460269,-895.57,0.00013834,2]
[331787394,1720763460278,-500.0,0.00013834,2]
[331787395,1720763460287,-500.0,0.00013834,2]
[331787396,1720763460296,-788.69,0.00013834,2]
[331787397,1720763460306,-500.0,0.00013834,2]
[331787398,1720763460315,-583.5,0.00013834,2]
[331787399,1720763460324,-500.0,0.00013834,2]
[331787400,1720763460336,-863.73,0.00013834,2]
[331787401,1720763460345,-500.0,0.00013834,2]
[331787402,1720763460355,-500.0,0.00013834,2]
[331787403,1720763460365,-411.66,0.00013834,2]
[331787404,1720763460375,-549.75,0.00013834,2]
[331787405,1720763460384,-500.0,0.00013834,2]
[331787406,1720763460394,-500.0,0.00013834,2]
[331787407,1720763460403,-500.0,0.00013834,2]
[331787408,1720763460413,-500.0,0.00013834,2]
[331787409,1720763460422,-500.0,0.00013834,2]
[331787410,1720763460431,-708.79,0.00013834,2]
[331787411,1720763460441,-500.0,0.00013834,2]
[331787412,1720763460450,-500.0,0.00013834,2]
[331787413,1720763460460,-500.0,0.00013834,2]
[331787414,1720763460473,-500.0,0.00013834,2]
[331787415,1720763460487,-666.78,0.00013834,2]
[331787416,1720763460501,-500.0,0.00013834,2]
[331787417,1720763460514,-500.0,0.00013834,2]
[331787418,1720763460525,-875.18,0.00013834,2]
[331787419,1720763460538,-500.0,0.00013834,2]
[331787420,1720763460550,-500.0,0.00013834,2]
[331787421,1720763460562,-1053.04,0.00013834,2]
[331787422,1720763460575,-500.0,0.00013834,2]
[331787423,1720763460589,-500.0,0.00013834,2]
[331787424,1720763460602,-500.0,0.00013834,2]
[331787425,1720763460618,-1036.15,0.00013834,2]
[331787426,1720763460632,-500.0,0.00013834,2]
[331787427,1720763460644,-799.33,0.00013834,2]
[331787428,1720763460656,-500.0,0.00013834,2]
[331787429,1720763460668,-500.0,0.00013834,2]
[331787430,1720763460681,-1079.16,0.00013834,2]
[331787431,1720763460694,-687.45,0.00013834,2]
[331787432,1720763460707,-500.0,0.00013834,2]
[331787433,1720763460717,-1584.19,0.00013834,2]
[331787434,1720763460729,-500.0,0.00013834,2]
[331787435,1720763460743,-500.0,0.00013834,2]
[331787436,1720763460756,-500.0,0.00013834,2]
[331787437,1720763460768,-500.0,0.00013834,2]
[331787438,1720763460782,-500.0,0.00013834,2]
[331787439,1720763460795,-1366.75,0.00013834,2]
[331787440,1720763460808,-500.0,0.00013834,2]
[331787441,1720763460823,-500.0,0.00013834,2]
[331787442,1720763460836,-500.0,0.00013834,2]
[331787443,1720763460847,-500.0,0.00013834,2]
[331787444,1720763460857,-500.0,0.00013834,2]
[331787445,1720763460867,-678.82,0.00013834,2]
[331787446,1720763460879,-500.0,0.00013834,2]
[331787447,1720763460892,-1427.74,0.00013834,2]
[331787448,1720763460904,-500.0,0.00013834,2]
[331787449,1720763460916,-500.0,0.00013834,2]
[331787450,1720763460927,-500.0,0.00013834,2]
[331787451,1720763460941,-818.09,0.00013834,2]
[331787452,1720763460953,-769.59,0.00013834,2]